bitfinex/quotes_BTCUSD_20251104
["timestamp","ask_amount","ask_price","bid_price","bid_amount"]
[1762291350542,0.00427293,100240.0,100230.0,0.3683355]
[1762291350805,0.00427293,100240.0,100230.0,0.4183355]
[1762291351015,0.0004,100270.0,100250.0,0.19948339]
[1762291351231,0.0004,100270.0,100260.0,0.33638197]
[1762291351232,0.00054571,100270.0,100260.0,0.33638197]
[1762291351460,0.00054571,100270.0,100260.0,0.35841794]
[1762291351674,0.00130902,100270.0,100260.0,0.23850378]
[1762291351889,0.2191511,100270.0,100250.0,0.19948339]
[1762291352094,0.01892634,100270.0,100260.0,0.19948134]
[1762291352292,0.01882564,100270.0,100260.0,0.3092908]
[1762291352506,0.00044501,100270.0,100260.0,0.41516822]
[1762291352733,0.00044501,100270.0,100260.0,0.37163845]
[1762291352734,0.00144501,100270.0,100260.0,0.37163845]
[1762291352937,0.00134475,100270.0,100260.0,0.42153792]
[1762291354022,0.00134475,100270.0,100260.0,1.06496224]
[1762291354301,0.00134475,100270.0,100260.0,1.10114452]
[1762291354509,0.00071269,100270.0,100260.0,0.37153792]
[1762291354725,0.00071269,100270.0,100260.0,0.3656605]
[1762291355126,0.34,100280.0,100270.0,0.19946145]
[1762291355375,0.35838791,100280.0,100270.0,0.22329145]
[1762291355577,0.35838791,100280.0,100270.0,0.33320145]
[1762291355927,0.01838791,100280.0,100270.0,0.39240064]
[1762291356369,0.03208,100310.0,100290.0,0.24349167]
[1762291356592,0.31411425,100310.0,100290.0,0.19941974]
[1762291356834,0.34,100300.0,100290.0,0.19941974]
[1762291357036,0.29571839,100310.0,100300.0,0.19940179]
[1762291357239,0.65411906,100310.0,100300.0,0.19940179]
[1762291357444,0.66410904,100310.0,100300.0,0.19940179]
[1762291357662,0.03031667,100310.0,100300.0,0.26730179]
[1762291357879,0.02032669,100310.0,100300.0,0.38661202]
[1762291358089,0.02032669,100310.0,100300.0,0.36061202]
[1762291358510,0.02532669,100310.0,100300.0,0.36061202]
[1762291358718,0.02032669,100310.0,100300.0,0.36065202]
[1762291358937,0.02032669,100310.0,100300.0,0.43694342]
[1762291359146,0.02332669,100310.0,100300.0,1.03136774]
[1762291359376,0.02332669,100310.0,100300.0,1.08136774]
[1762291359803,0.02032669,100310.0,100300.0,0.43694342]
[1762291360017,0.02032669,100310.0,100300.0,1.08036774]
[1762291360251,0.02132669,100310.0,100300.0,1.08336774]
[1762291360479,0.0004,100330.0,100300.0,1.08336774]
[1762291360707,0.0004,100330.0,100320.0,0.29456204]
[1762291360915,0.0004,100330.0,100320.0,0.30723146]
[1762291361137,0.0004,100330.0,100320.0,0.42246146]
[1762291361573,0.82391555,100360.0,100350.0,0.19930244]
[1762291361786,0.12477854,100360.0,100350.0,0.11842658]
[1762291362043,0.19930244,100350.0,100320.0,0.20282882]
[1762291362261,0.34,100340.0,100330.0,0.19934139]
[1762291362468,0.34,100340.0,100330.0,0.23100139]
[1762291362679,0.34,100340.0,100330.0,0.34143139]
[1762291362898,0.34,100340.0,100330.0,0.23100139]
[1762291363112,0.34,100340.0,100330.0,0.27620217]
[1762291363322,0.34,100340.0,100330.0,0.23100217]
[1762291364156,0.6343123,100340.0,100330.0,0.19934217]
[1762291364370,0.34,100330.0,100320.0,0.20283227]
[1762291364582,0.53934217,100330.0,100310.0,0.19936416]
[1762291364789,0.64723217,100330.0,100310.0,0.19936416]
[1762291365007,0.54019166,100330.0,100320.0,0.19936204]
[1762291365223,0.34,100330.0,100320.0,0.24456204]
[1762291365920,0.34,100330.0,100320.0,0.30979204]
[1762291366130,3.0,100330.0,100320.0,0.00347023]
[1762291366352,0.34,100330.0,100320.0,0.20383227]
[1762291366570,0.34050835,100330.0,100320.0,0.20383227]
[1762291367841,0.34050835,100330.0,100320.0,0.31426227]
[1762291368518,0.00050835,100330.0,100320.0,0.37062491]
[1762291368697,0.00050835,100330.0,100320.0,0.42062491]
[1762291369041,0.00050835,100330.0,100320.0,0.37062491]
[1762291369237,0.00050835,100330.0,100320.0,0.42062491]
[1762291369877,0.00050835,100330.0,100320.0,0.39462491]
[1762291370759,0.00050835,100330.0,100320.0,0.31426227]
[1762291370975,0.00050835,100330.0,100320.0,0.24903227]
[1762291371179,0.00050835,100330.0,100320.0,0.31426227]
[1762291371387,0.00050835,100330.0,100320.0,0.36426227]
[1762291372695,0.00050835,100330.0,100320.0,0.31426227]
[1762291372913,0.00050835,100330.0,100320.0,0.36426227]
[1762291373058,0.19985052,100330.0,100320.0,0.20383227]
[1762291373268,0.30774052,100330.0,100320.0,0.00447023]
[1762291374117,0.30774052,100330.0,100320.0,0.001]
[1762291374508,0.24425052,100330.0,100320.0,0.001]
[1762291374898,3.64774052,100330.0,100320.0,0.001]
[1762291375107,0.19938191,100310.0,100300.0,0.02387]
[1762291375466,0.19938191,100310.0,100300.0,4e-05]
[1762291375673,0.19961065,100310.0,100300.0,4e-05]
[1762291375882,3.24401065,100310.0,100300.0,4e-05]
[1762291376108,3.68368293,100310.0,100300.0,4e-05]
[1762291376309,3.81319611,100310.0,100300.0,4e-05]
[1762291376511,0.53944156,100280.0,100270.0,0.02383]
[1762291376716,0.57094156,100280.0,100270.0,0.0239756]
[1762291376920,0.34,100280.0,100270.0,0.1344056]
[1762291377099,0.53944156,100280.0,100270.0,0.1344056]
[1762291377312,0.34,100280.0,100270.0,0.1344056]
[1762291377511,0.53944156,100280.0,100270.0,0.1344056]
[1762291377917,0.34,100280.0,100270.0,0.33386705]
[1762291378348,0.53944156,100280.0,100270.0,0.33386705]
[1762291378553,0.344,100280.0,100270.0,0.33486705]
[1762291378762,0.57494156,100280.0,100270.0,0.0249756]
[1762291378939,0.61934156,100280.0,100270.0,0.0011456]
[1762291379368,0.61078359,100280.0,100270.0,0.20060705]
[1762291379571,0.00369402,100280.0,100270.0,0.33486705]
[1762291379869,0.20252554,100280.0,100270.0,0.33486705]
[1762291380092,0.34100219,100280.0,100270.0,0.0011456]
[1762291380350,0.27690918,100280.0,100270.0,0.0011456]
[1762291380551,0.33688629,100280.0,100270.0,0.00168289]
[1762291380751,0.33599012,100280.0,100270.0,0.00168289]
[1762291380958,0.22756459,100280.0,100270.0,0.22497434]
[1762291381231,0.33484426,100280.0,100270.0,0.00168289]
[1762291381431,0.33104481,100280.0,100270.0,0.00168289]
[1762291381632,0.67991625,100280.0,100270.0,0.00168289]
[1762291381839,0.67931134,100280.0,100270.0,0.00168289]
[1762291382041,0.67868455,100280.0,100270.0,0.00168289]
[1762291382250,0.58043028,100280.0,100270.0,0.02581289]
[1762291382480,0.7683839,100280.0,100270.0,0.00168289]
[1762291382695,3.80366187,100280.0,100270.0,0.00168289]
[1762291382902,3.8288428,100280.0,100270.0,0.00168289]
[1762291383109,3.80093388,100280.0,100270.0,0.00168289]
[1762291383307,3.80004228,100280.0,100270.0,0.00168289]
[1762291383512,3.79942837,100280.0,100270.0,0.00168289]
[1762291383733,3.79852246,100280.0,100270.0,0.00168289]
[1762291383942,3.82403055,100280.0,100270.0,0.00168289]
[1762291384151,0.53946145,100270.0,100260.0,4e-05]
[1762291384363,3.77181896,100270.0,100260.0,4e-05]
[1762291384570,3.67905188,100270.0,100260.0,4e-05]
[1762291384782,3.57860988,100270.0,100260.0,4e-05]
[1762291384996,3.61447941,100270.0,100260.0,4e-05]
[1762291385218,3.61355347,100270.0,100260.0,4e-05]
[1762291385426,0.33936503,100250.0,100240.0,0.25666738]
[1762291385641,2.99969672,100260.0,100250.0,0.19948764]
[1762291385849,0.007,100270.0,100260.0,0.19948134]
[1762291386055,0.23105836,100280.0,100270.0,0.19946145]
[1762291386265,0.03118961,100280.0,100270.0,0.22312145]
[1762291386486,0.42747703,100290.0,100280.0,0.19944156]
[1762291386487,0.03991288,100290.0,100280.0,0.19944156]
[1762291386697,0.03900681,100290.0,100280.0,0.19944156]
[1762291386933,0.22754112,100290.0,100270.0,0.07366]
[1762291387136,0.2716211,100290.0,100270.0,0.22312034]
[1762291387309,0.22632034,100290.0,100280.0,0.19944156]
[1762291387518,0.22542936,100290.0,100280.0,0.19944156]
[1762291387726,0.19885293,100280.0,100270.0,0.33355034]
[1762291387922,0.17293947,100280.0,100270.0,0.33355034]
[1762291388129,0.17263979,100280.0,100270.0,0.33355034]
[1762291388333,0.17202506,100280.0,100270.0,0.33355034]
[1762291388541,0.17110495,100280.0,100270.0,0.33355034]
[1762291388751,0.19946145,100270.0,100260.0,0.26292563]
[1762291389000,0.19884622,100270.0,100260.0,0.00347023]
[1762291389225,0.19917384,100260.0,100250.0,0.2746927]
[1762291389433,0.53825177,100260.0,100250.0,0.00014571]
[1762291389641,0.53764844,100260.0,100250.0,0.00014571]
[1762291389851,0.53673701,100260.0,100250.0,0.00014571]
[1762291390058,0.53644376,100260.0,100250.0,0.00014571]
[1762291390277,0.19946358,100270.0,100250.0,0.30574695]
[1762291390495,0.53946358,100270.0,100260.0,0.19948134]
[1762291390710,0.53946358,100270.0,100250.0,0.36081541]
[1762291390711,0.32338022,100270.0,100250.0,0.36081541]
[1762291390930,0.24075134,100260.0,100250.0,0.00314571]
[1762291391141,0.24075134,100260.0,100250.0,0.20264695]
[1762291391142,0.30144134,100260.0,100250.0,0.20264695]
[1762291391382,0.24075134,100260.0,100250.0,0.00014571]
[1762291391596,3.38386985,100260.0,100250.0,0.00014571]
[1762291391819,0.61971608,100270.0,100250.0,0.00014571]
[1762291392035,3.0,100270.0,100260.0,0.19948134]
[1762291392238,0.19946145,100270.0,100250.0,0.30574324]
[1762291392451,0.19946145,100270.0,100250.0,0.19964695]
[1762291392452,0.19948134,100260.0,100250.0,0.19964695]
[1762291393099,0.24075134,100260.0,100250.0,0.19964695]
[1762291393312,0.19946156,100270.0,100260.0,0.19948134]
[1762291393520,3.19946145,100270.0,100260.0,0.19948134]
[1762291393726,3.0,100270.0,100260.0,0.19948134]
[1762291393951,0.19946145,100270.0,100260.0,0.19948134]
[1762291394154,0.30142145,100270.0,100260.0,0.01861275]
[1762291394370,0.19948134,100260.0,100250.0,0.19968695]
[1762291395014,0.19948134,100260.0,100250.0,0.00018571]
[1762291395239,3.67762362,100260.0,100250.0,0.00018571]
[1762291396090,3.58075134,100260.0,100250.0,0.00018571]
[1762291396303,3.58075134,100260.0,100250.0,0.24310695]
[1762291396304,0.341,100260.0,100250.0,0.24310695]
[1762291396558,0.001,100260.0,100250.0,0.00018571]
[1762291396764,0.20048134,100260.0,100250.0,0.00018571]
[1762291396974,0.24175134,100260.0,100250.0,0.00018571]
[1762291397181,0.64244134,100260.0,100250.0,0.00018571]
[1762291397386,3.64244134,100260.0,100250.0,0.00018571]
[1762291397592,3.77818059,100260.0,100250.0,0.00018571]
[1762291398001,3.80397927,100260.0,100250.0,0.00018571]
[1762291398222,3.77818059,100260.0,100250.0,0.00018571]
[1762291398426,3.77818059,100260.0,100250.0,1e-08]
[1762291398635,3.61148219,100250.0,100240.0,0.00197131]
[1762291398836,3.83088455,100250.0,100240.0,0.00197131]
[1762291399037,3.80508587,100250.0,100240.0,0.00197131]
[1762291399241,3.80508587,100250.0,100220.0,4e-05]
[1762291399444,3.61699333,100230.0,100220.0,4e-05]
[1762291399653,3.67768333,100230.0,100220.0,4e-05]
[1762291399803,3.76435524,100230.0,100220.0,4e-05]
[1762291401662,0.19962072,100190.0,100180.0,0.00696]
[1762291401866,0.21644072,100190.0,100180.0,0.00696]
[1762291402086,0.21644072,100190.0,100180.0,0.20660064]
[1762291402475,0.24642469,100190.0,100180.0,0.20660064]
[1762291402684,0.02998397,100190.0,100180.0,0.35931876]
[1762291402893,0.02998397,100190.0,100180.0,0.40980468]
[1762291403309,0.24109204,100190.0,100180.0,0.05806404]
[1762291403506,0.37581204,100190.0,100180.0,0.00448592]
[1762291403712,3.71581204,100190.0,100180.0,0.00448592]
[1762291403883,3.75199432,100190.0,100180.0,0.00448592]
[1762291404348,3.45550132,100190.0,100180.0,0.20412656]
[1762291404555,0.65512204,100190.0,100180.0,0.00448592]
[1762291404740,0.71581204,100190.0,100180.0,0.20412656]
[1762291404913,0.71581204,100190.0,100180.0,0.00048592]
[1762291405274,3.84715404,100190.0,100180.0,0.00248592]
[1762291405552,3.84715404,100190.0,100180.0,0.00048592]
[1762291405785,3.84715404,100190.0,100180.0,0.00178462]
[1762291405991,3.84815404,100190.0,100180.0,0.00178462]
[1762291406167,3.84715404,100190.0,100180.0,0.00178462]
[1762291406580,3.75499432,100190.0,100180.0,0.00178462]
[1762291406747,0.65812204,100190.0,100180.0,0.20142526]
[1762291406952,0.61685204,100190.0,100180.0,0.20142526]
[1762291407162,0.04447132,100190.0,100180.0,0.25673526]
[1762291407361,0.03298397,100190.0,100180.0,0.36941526]
[1762291407566,0.03298397,100190.0,100180.0,0.42632273]
[1762291407767,0.003,100190.0,100180.0,1.29672586]
[1762291407987,0.003,100190.0,100180.0,1.29676586]
[1762291408178,0.003,100190.0,100180.0,0.42983296]
[1762291408379,0.22955844,100210.0,100190.0,0.24960288]
[1762291408726,0.27789228,100210.0,100190.0,0.19960288]
[1762291408997,0.22955844,100210.0,100200.0,0.19960079]
[1762291409398,0.22955844,100210.0,100190.0,0.26228288]
[1762291409629,0.02997756,100210.0,100200.0,0.19960079]
[1762291409825,0.22955844,100210.0,100200.0,0.1061]
[1762291410039,0.22955844,100210.0,100200.0,0.30570079]
[1762291410242,0.02997756,100210.0,100200.0,0.30570079]
[1762291410443,0.19960079,100200.0,100190.0,0.19960288]
[1762291410856,0.19960079,100200.0,100180.0,0.33948752]
[1762291411002,0.19960079,100200.0,100180.0,0.28948752]
[1762291411210,0.19962072,100190.0,100180.0,0.28948752]
[1762291411415,0.53960079,100200.0,100190.0,0.19962072]
[1762291411619,0.34,100200.0,100190.0,0.30324467]
[1762291411851,0.53960079,100200.0,100190.0,0.30524467]
[1762291412058,0.53960079,100200.0,100190.0,0.00108395]
[1762291412256,3.67669307,100200.0,100190.0,0.00108395]
[1762291412427,3.77625004,100200.0,100190.0,0.00108395]
[1762291413035,0.67669307,100200.0,100190.0,0.00308395]
[1762291413236,3.67669307,100200.0,100190.0,0.00308395]
[1762291414246,3.67669307,100200.0,100190.0,0.00108395]
[1762291414655,3.67869307,100200.0,100190.0,0.00108395]
[1762291414855,3.67669307,100200.0,100190.0,0.00108395]
[1762291415052,3.77625004,100200.0,100190.0,0.00108395]
[1762291415332,3.67669307,100200.0,100190.0,0.00108395]
[1762291415543,3.6952288,100200.0,100190.0,0.00108395]
[1762291416349,3.7064954,100200.0,100190.0,0.00108395]
[1762291416754,3.6972288,100200.0,100190.0,0.00108395]
[1762291416970,3.80605175,100200.0,100190.0,0.00108395]
[1762291417177,3.83550492,100200.0,100190.0,3.95e-06]
[1762291417417,3.53962072,100190.0,100180.0,0.00052592]
[1762291417611,3.60236072,100190.0,100180.0,0.00052592]
[1762291417815,3.66380072,100190.0,100180.0,0.00052592]
[1762291418029,3.76335769,100190.0,100180.0,0.00052592]
[1762291418256,3.76335769,100190.0,100150.0,0.0002]
[1762291418257,0.53968051,100160.0,100150.0,0.0002]
[1762291418468,3.64716279,100160.0,100150.0,0.0003452]
[1762291418675,3.70860279,100160.0,100150.0,0.0003452]
[1762291419093,3.73860241,100160.0,100150.0,0.0003452]
[1762291419296,3.84143792,100160.0,100150.0,0.0003452]
[1762291419570,3.70242013,100160.0,100150.0,0.0003452]
[1762291419781,0.64098013,100160.0,100150.0,0.0003452]
[1762291419993,0.40182962,100160.0,100150.0,0.20004564]
[1762291420198,0.36999962,100160.0,100150.0,0.27422564]
[1762291420399,0.36999962,100160.0,100150.0,0.23130564]
[1762291420806,0.56968013,100160.0,100150.0,0.23130564]
[1762291421036,0.56968013,100160.0,100150.0,0.23230564]
[1762291421436,0.60125013,100160.0,100150.0,0.23130564]
[1762291421645,0.60225013,100160.0,100150.0,0.23630564]
[1762291421777,0.40256962,100160.0,100150.0,0.23630564]
[1762291422204,0.03099962,100160.0,100150.0,0.39178025]
[1762291422404,0.001,100160.0,100150.0,0.44178025]
[1762291422766,0.20068051,100160.0,100150.0,0.24207981]
[1762291422966,0.20068051,100160.0,100150.0,0.1919152]
[1762291423105,0.20068051,100160.0,100150.0,0.23630564]
[1762291423490,0.20068051,100160.0,100150.0,0.0366052]
[1762291423717,0.20068051,100160.0,100150.0,0.23630564]
[1762291423914,0.20068051,100160.0,100150.0,0.03736958]
[1762291424322,0.54068051,100160.0,100150.0,0.03736958]
[1762291424970,0.56844166,100160.0,100150.0,0.03736958]
[1762291425286,0.60001166,100160.0,100150.0,0.03736958]
[1762291425842,0.70073166,100160.0,100150.0,0.00610958]
[1762291428262,3.73691394,100160.0,100150.0,0.00610958]
[1762291428922,3.73591394,100160.0,100150.0,0.00110958]
[1762291429160,3.69973166,100160.0,100150.0,0.00110958]
[1762291429376,3.73591394,100160.0,100150.0,0.00878458]
[1762291429587,3.889536,100160.0,100150.0,0.00878458]
[1762291429767,3.83547091,100160.0,100150.0,0.00878458]
[1762291430009,3.86546969,100160.0,100150.0,0.00878458]
[1762291431116,3.76591272,100160.0,100150.0,0.00878458]
[1762291431533,0.66903044,100160.0,100150.0,0.00878458]
[1762291431738,0.72973044,100160.0,100150.0,0.00878458]
[1762291432180,0.76591272,100160.0,100150.0,0.00878458]
[1762291432682,3.76591272,100160.0,100150.0,0.00878458]
[1762291432886,3.86546969,100160.0,100150.0,0.00878458]
[1762291434336,3.86546969,100160.0,100150.0,0.00914409]
[1762291434795,3.76591272,100160.0,100150.0,0.00914409]
[1762291437088,0.76591272,100160.0,100150.0,0.00914409]
[1762291437298,3.76591272,100160.0,100150.0,0.00914409]
[1762291439773,3.42591272,100160.0,100150.0,0.00914409]
[1762291440853,0.36521272,100160.0,100150.0,0.01936409]
[1762291441070,0.05775993,100160.0,100150.0,0.35049047]
[1762291441270,0.03925428,100160.0,100150.0,0.37437453]
[1762291441628,0.23893479,100160.0,100150.0,0.32437453]
[1762291441830,0.23893479,100160.0,100150.0,0.37437453]
[1762291442083,0.57893479,100160.0,100150.0,0.32437453]
[1762291442294,0.37925428,100160.0,100150.0,0.32437453]
[1762291442520,0.0092555,100160.0,100150.0,0.43213079]
[1762291442743,0.0092555,100160.0,100150.0,1.0750276]
[1762291442947,0.02327,100190.0,100150.0,1.0750276]
[1762291442948,0.23187037,100200.0,100180.0,0.19962296]
[1762291443159,0.22621072,100190.0,100180.0,0.00347023]
[1762291443366,0.19965142,100180.0,100170.0,0.03126]
[1762291443576,0.19965142,100180.0,100160.0,0.00347023]
[1762291443577,0.25808796,100180.0,100160.0,0.00347023]
[1762291443783,0.01841654,100180.0,100170.0,0.13657]
[1762291444007,0.19964064,100180.0,100170.0,0.03126]
[1762291444215,0.57966064,100180.0,100160.0,0.00347023]
[1762291444416,0.19966057,100170.0,100160.0,0.00347023]
[1762291444631,0.53968051,100160.0,100150.0,0.01659971]
[1762291445043,0.34,100160.0,100150.0,0.32531371]
[1762291445243,0.21062267,100180.0,100160.0,0.19968051]
[1762291445437,0.53966057,100170.0,100160.0,0.35846074]
[1762291445642,0.34,100170.0,100160.0,0.41693533]
[1762291445857,0.20064556,100180.0,100170.0,0.05]
[1762291446032,0.19966057,100170.0,100160.0,0.00347023]
[1762291446208,0.19968051,100160.0,100150.0,0.22628517]
[1762291446417,0.19968051,100160.0,100150.0,0.00637971]
[1762291446418,0.27127051,100160.0,100150.0,0.00637971]
[1762291446619,3.70815279,100160.0,100150.0,0.00637971]
[1762291446791,3.80770976,100160.0,100150.0,0.00637971]
[1762291447405,3.80770976,100160.0,100150.0,1e-08]
[1762291447609,3.80770976,100160.0,100150.0,0.00400001]
[1762291448048,3.80770976,100160.0,100150.0,0.004]
[1762291450150,3.70815279,100160.0,100150.0,0.004]
[1762291450364,0.19975859,100130.0,100110.0,0.29798031]
[1762291450564,0.19976028,100120.0,100110.0,0.29812608]
[1762291450764,0.19975859,100130.0,100110.0,0.29812608]
[1762291450942,0.53975859,100130.0,100110.0,0.29991033]
[1762291451175,0.53975859,100130.0,100110.0,0.36352085]
[1762291451377,0.53975859,100130.0,100120.0,0.20128948]
[1762291451581,0.53975859,100130.0,100120.0,0.0015292]
[1762291451787,0.53975859,100130.0,100120.0,0.30193948]
[1762291451788,0.34,100130.0,100120.0,0.30193948]
[1762291452359,0.19970378,100150.0,100140.0,0.19972018]
[1762291452574,0.53972039,100140.0,100130.0,0.24333056]
[1762291452792,0.53972039,100140.0,100130.0,0.00347023]
[1762291452997,0.53972039,100140.0,100120.0,0.05]
[1762291452998,0.19976028,100120.0,100110.0,0.040196]
[1762291453368,0.19976028,100120.0,100110.0,0.036196]
[1762291453755,0.24263912,100130.0,100120.0,0.004]
[1762291453995,0.19976028,100120.0,100110.0,0.23597624]
[1762291454387,0.001,100120.0,100110.0,0.29760273]
[1762291454599,0.19976028,100120.0,100110.0,0.29160273]
[1762291455005,0.20901154,100120.0,100110.0,0.29160273]
[1762291455227,0.00925126,100120.0,100110.0,0.29160273]
[1762291455801,0.00925126,100120.0,100110.0,0.39225273]
[1762291456369,0.00925126,100120.0,100110.0,0.44725273]
[1762291456814,0.20901154,100120.0,100110.0,0.141846]
[1762291457018,0.20901154,100120.0,100110.0,0.041196]
[1762291457258,0.20901154,100120.0,100110.0,0.03772577]
[1762291457474,0.20901154,100120.0,100110.0,0.00514577]
[1762291457710,0.68484382,100120.0,100110.0,0.00514577]
[1762291457923,3.7733023,100120.0,100110.0,0.00514577]
[1762291458175,3.79910098,100120.0,100110.0,0.00514577]
[1762291458577,3.80156871,100120.0,100110.0,0.00693002]
[1762291458777,3.7733023,100120.0,100110.0,0.00693002]
[1762291459016,3.80331702,100120.0,100110.0,0.00693002]
[1762291459230,3.71485854,100120.0,100110.0,0.00693002]
[1762291459431,3.71485854,100120.0,100110.0,0.00193002]
[1762291459815,3.71685854,100120.0,100110.0,0.00193002]
[1762291460016,0.51709826,100120.0,100110.0,0.00193002]
[1762291460174,0.71685854,100120.0,100110.0,0.00193002]
[1762291460377,0.71685854,100120.0,100110.0,0.20171026]
[1762291460378,0.71485854,100120.0,100110.0,0.20171026]
[1762291461131,0.71497618,100120.0,100110.0,0.20171026]
[1762291461741,0.08564118,100120.0,100110.0,0.20171026]
[1762291461969,0.20912918,100120.0,100110.0,0.20175026]
[1762291462387,0.00925126,100120.0,100110.0,0.24175262]
[1762291462626,0.00925126,100120.0,100110.0,0.35196089]
[1762291462917,0.00925126,100120.0,100110.0,0.29143089]
[1762291463157,0.00925126,100120.0,100110.0,0.24522285]
[1762291463630,0.00925126,100120.0,100110.0,0.30675285]
[1762291464571,0.00925126,100120.0,100110.0,1.14914966]
[1762291465346,0.00925126,100120.0,100110.0,1.12914966]
[1762291465737,0.00925126,100120.0,100110.0,1.14137966]
[1762291465936,0.20901154,100120.0,100110.0,0.49848285]
[1762291466141,0.00925126,100120.0,100110.0,0.42447047]
[1762291466541,0.00925126,100120.0,100110.0,0.48500047]
[1762291466739,0.00925126,100120.0,100110.0,0.60348053]
[1762291467235,0.20901154,100120.0,100110.0,0.25073006]
[1762291467399,0.00925126,100120.0,100110.0,1.04340711]
[1762291467603,0.00925126,100120.0,100110.0,1.24290711]
[1762291468970,0.00925126,100120.0,100110.0,0.6000103]
[1762291469795,0.00925126,100120.0,100110.0,1.19290711]
[1762291469938,0.00925126,100120.0,100110.0,0.6000103]
[1762291470135,0.00925126,100120.0,100110.0,1.24290711]
[1762291470337,0.00925126,100120.0,100110.0,0.6000103]
[1762291471904,0.20901154,100120.0,100110.0,0.6000103]
[1762291472328,0.20901154,100120.0,100110.0,0.42100024]
[1762291472899,0.20901154,100120.0,100110.0,0.27150024]
[1762291473287,0.00925126,100120.0,100110.0,0.42100024]
[1762291473569,0.00925126,100120.0,100110.0,0.37880024]
[1762291473856,0.00925126,100120.0,100110.0,0.97169705]
[1762291474012,0.00925126,100120.0,100110.0,1.02169705]
[1762291475434,0.00925126,100120.0,100110.0,1.02069705]
[1762291475641,0.00925126,100120.0,100110.0,0.37780024]
[1762291475947,0.00925126,100120.0,100110.0,0.37980024]
[1762291476176,0.00925126,100120.0,100110.0,0.97269705]
[1762291476376,0.00925126,100120.0,100110.0,1.02269705]
[1762291476870,0.53972039,100140.0,100130.0,0.19974033]
[1762291477057,0.53972039,100140.0,100130.0,0.22923033]
[1762291477058,0.54897001,100140.0,100130.0,0.22923033]
[1762291477380,0.54897001,100140.0,100130.0,0.26959033]
[1762291477584,0.5496956,100140.0,100130.0,0.26959033]
[1762291477800,0.54969987,100140.0,100130.0,0.06985]
[1762291478022,0.19974033,100130.0,100110.0,0.34989883]
[1762291478198,0.19974033,100130.0,100120.0,0.19976028]
[1762291478199,0.20899556,100130.0,100120.0,0.19976028]
[1762291478434,0.20899556,100130.0,100120.0,0.24012028]
[1762291478435,0.20969566,100130.0,100120.0,0.24012028]
[1762291478638,0.20969566,100130.0,100120.0,0.09766]
[1762291478862,0.19976028,100120.0,100110.0,0.18032958]
[1762291479063,0.58780417,100120.0,100110.0,0.00026958]
[1762291479272,0.64859417,100120.0,100110.0,0.00026958]
[1762291480113,0.58780417,100120.0,100110.0,0.00026958]
[1762291480287,0.64859417,100120.0,100110.0,0.00026958]
[1762291480703,0.74699261,100120.0,100110.0,0.00026958]
[1762291482390,0.58780417,100120.0,100110.0,0.02930958]
[1762291483391,0.65009417,100120.0,100110.0,0.00026958]
[1762291483615,0.58780417,100120.0,100110.0,0.00026958]
[1762291484016,0.65009417,100120.0,100110.0,0.00026958]
[1762291484219,0.74864261,100120.0,100110.0,0.00026958]
[1762291486241,0.74864261,100120.0,100110.0,0.09924958]
[1762291486242,0.34925389,100120.0,100110.0,0.09924958]
[1762291486416,0.0007001,100130.0,100120.0,0.19976028]
[1762291486627,0.20970541,100130.0,100120.0,0.30221051]
[1762291487006,0.0007001,100130.0,100120.0,0.24413051]
[1762291487213,0.3407001,100130.0,100120.0,0.24413051]
[1762291487412,0.3407001,100130.0,100120.0,0.30221051]
[1762291487780,0.0007001,100130.0,100120.0,0.30221051]
[1762291488802,0.0007001,100130.0,100120.0,0.42438654]
[1762291489015,0.0007001,100130.0,100120.0,0.35421051]
[1762291489242,0.20044043,100130.0,100120.0,0.30421051]
[1762291489886,0.20044043,100130.0,100120.0,0.10445023]
[1762291490093,0.20044043,100130.0,100120.0,0.00547023]
[1762291490094,0.67075043,100130.0,100120.0,0.00547023]
[1762291490304,0.71619117,100130.0,100120.0,0.002]
[1762291490512,0.81036237,100130.0,100120.0,0.002]
[1762291490760,3.83616105,100130.0,100120.0,0.002]
[1762291491197,3.84037252,100130.0,100120.0,0.002]
[1762291491407,0.57594256,100120.0,100110.0,0.00026958]
[1762291491580,0.68568102,100120.0,100110.0,0.00026958]
[1762291492456,0.78523799,100120.0,100110.0,0.00026958]
[1762291492654,3.78523799,100120.0,100110.0,0.00026958]
[1762291492856,3.78523865,100120.0,100110.0,0.00026958]
[1762291493895,3.84180374,100120.0,100110.0,0.00026958]
[1762291494055,3.81600506,100120.0,100110.0,0.00026958]
[1762291494205,3.78523865,100120.0,100110.0,1e-08]
[1762291494443,0.19984012,100080.0,100070.0,0.03154]
[1762291494651,0.21579012,100080.0,100070.0,0.03202391]
[1762291494859,0.34703653,100080.0,100070.0,0.00076391]
[1762291495102,0.7109576,100080.0,100070.0,0.00076391]
[1762291495495,0.6924524,100080.0,100070.0,0.00076391]
[1762291495704,0.6924524,100080.0,100070.0,0.00276391]
[1762291495902,0.70524878,100080.0,100070.0,0.00076391]
[1762291496105,0.73526965,100080.0,100070.0,0.00076391]
[1762291496310,0.73526965,100080.0,100070.0,0.200624]
[1762291496744,0.05876725,100080.0,100070.0,0.229664]
[1762291496952,0.01279638,100080.0,100070.0,0.31061419]
[1762291497164,0.19984012,100080.0,100070.0,0.270564]
[1762291497370,0.5688814,100100.0,100080.0,0.19984012]
[1762291497550,0.19982016,100090.0,100070.0,0.328644]
[1762291497792,0.66118636,100100.0,100080.0,0.19984012]
[1762291498009,0.59889636,100100.0,100090.0,0.19982016]
[1762291498216,0.0431453,100100.0,100090.0,0.31192016]
[1762291498417,0.01313034,100100.0,100090.0,0.36312029]
[1762291498631,0.5696137,100110.0,100100.0,0.19980019]
[1762291498837,0.24237988,100110.0,100100.0,0.19980019]
[1762291499041,0.24237988,100110.0,100100.0,0.19808019]
[1762291499428,0.38259618,100110.0,100100.0,0.19808019]
[1762291499682,0.35276618,100110.0,100100.0,0.19808019]
[1762291499854,0.23975892,100120.0,100100.0,0.29706019]
[1762291500061,0.28060431,100110.0,100100.0,0.19808019]
[1762291500269,0.56961024,100110.0,100100.0,0.19808019]
[1762291500625,0.58256222,100110.0,100100.0,0.19830972]
[1762291500869,0.58256222,100110.0,100100.0,0.20002972]
[1762291501085,0.58256222,100110.0,100100.0,0.00022953]
[1762291501322,0.7762965,100110.0,100100.0,0.00022953]
[1762291501526,0.68304222,100110.0,100100.0,0.00022953]
[1762291501955,0.7192245,100110.0,100100.0,0.00022953]
[1762291502191,3.7192245,100110.0,100100.0,0.00022953]
[1762291502394,3.7192245,100110.0,100080.0,0.000241]
[1762291502395,3.19982016,100090.0,100080.0,0.000241]
[1762291502535,3.35800713,100090.0,100080.0,0.000241]
[1762291502744,3.45056084,100090.0,100080.0,0.000241]
[1762291502944,3.24064201,100090.0,100080.0,0.000241]
[1762291503160,3.44046217,100090.0,100080.0,0.000241]
[1762291503333,3.41019846,100090.0,100080.0,0.000241]
[1762291504136,3.43865811,100090.0,100080.0,0.000241]
[1762291504348,3.77865811,100090.0,100080.0,0.000241]
[1762291504552,3.81484039,100090.0,100080.0,0.000241]